bitfinex-derivatives/quotes_SOLF0:USTF0_20250904
["timestamp","ask_amount","ask_price","bid_price","bid_amount"]
[1757009614806,10.77404623,204.35,204.28,4.54741748]
[1757009615004,10.77404623,204.35,204.27,7.64]
[1757009615205,10.77404623,204.35,204.28,4.54741748]
[1757009615408,10.77404623,204.35,204.29,4.54741748]
[1757009615709,10.77404623,204.35,204.27,7.64]
[1757009615905,10.77404623,204.35,204.28,4.54863423]
[1757009616104,10.77404623,204.35,204.29,4.54863423]
[1757009616410,10.77404623,204.35,204.27,7.64]
[1757009616608,10.77404623,204.35,204.28,4.55018748]
[1757009616809,10.77404623,204.35,204.29,4.55018748]
[1757009617010,10.77404623,204.35,204.27,7.64]
[1757009617212,10.77404623,204.35,204.28,4.55018748]
[1757009617406,10.77404623,204.35,204.29,4.55018748]
[1757009617607,10.77404623,204.35,204.27,7.64]
[1757009617801,10.77404623,204.35,204.28,4.5520995]
[1757009618004,10.77404623,204.35,204.29,4.5520995]
[1757009618209,10.77404623,204.35,204.27,7.64]
[1757009618408,10.77404623,204.35,204.28,4.55450589]
[1757009618609,10.77404623,204.35,204.27,7.64]
[1757009618805,10.77404623,204.35,204.28,4.55453007]
[1757009619005,10.77404623,204.35,204.27,7.64]
[1757009619207,10.77404623,204.35,204.28,4.55456008]
[1757009619406,10.77404623,204.35,204.29,4.55456008]
[1757009619607,10.77404623,204.35,204.27,7.64]
[1757009619807,10.77404623,204.35,204.28,4.5565681]
[1757009620008,10.77404623,204.35,204.29,4.5565681]
[1757009620308,10.77404623,204.35,204.27,7.64]
[1757009620503,10.77404623,204.35,204.28,4.55788167]
[1757009620700,10.77404623,204.35,204.29,4.55788167]
[1757009620911,10.77404623,204.35,204.27,7.64]
[1757009621116,7.76,204.35,204.28,4.55788167]
[1757009621408,7.76,204.31,204.24,7.64]
[1757009621710,7.76,204.31,204.25,4.55987274]
[1757009621910,3.01404623,204.32,204.26,4.55987274]
[1757009622105,3.01404623,204.32,204.24,7.64]
[1757009622310,7.76,204.31,204.25,4.56136618]
[1757009622507,7.76,204.31,204.26,4.56136618]
[1757009622711,7.76,204.31,204.22,7.64]
[1757009622912,7.76,204.31,204.23,4.56025645]
[1757009623213,7.76,204.31,204.25,7.64]
[1757009623513,7.76,204.31,204.27,7.64]
[1757009624110,7.76,204.31,204.22,7.64]
[1757009624408,7.76,204.31,204.24,7.64]
[1757009624611,7.76,204.31,204.25,4.5624355]
[1757009624811,10.77404623,204.32,204.26,4.5624355]
[1757009625112,3.01404623,204.32,204.27,12.2024355]
[1757009625315,3.01404623,204.32,204.27,7.64]
[1757009625813,7.76,204.31,204.27,7.64]
[1757009626314,7.76,204.31,204.23,7.64]
[1757009626611,7.76,204.31,204.25,7.64]
[1757009626811,10.77404623,204.32,204.26,4.56255201]
[1757009627111,7.76,204.31,204.27,12.20255201]
[1757009627309,7.76,204.31,204.27,7.64]
[1757009627514,7.76,204.31,204.28,4.56305836]
[1757009627714,7.76,204.31,204.27,7.64]
[1757009628212,7.76,204.31,204.28,4.56445848]
[1757009628513,7.76,204.31,204.27,7.64]
[1757009628708,7.7,204.31,204.24,7.47]
[1757009628909,7.7,204.31,204.25,4.56451209]
[1757009629116,3.01404623,204.32,204.26,4.56451209]
[1757009629311,7.7,204.31,204.27,12.03451209]
[1757009629617,7.7,204.31,204.28,7.47]
[1757009629817,7.7,204.33,204.24,7.47]
[1757009630109,7.7,204.33,204.26,7.47]
[1757009630315,7.7,204.36,204.28,7.47]
[1757009630509,7.7,204.36,204.29,4.56453669]
[1757009630705,7.7,204.36,204.3,4.56453669]
[1757009630909,7.7,204.36,204.28,7.47]
[1757009631105,7.7,204.36,204.29,4.56459137]
[1757009631313,7.7,204.36,204.3,4.56459137]
[1757009631512,1.93266681,204.33,204.28,7.47]
[1757009631711,1.93266681,204.33,204.3,7.47]
[1757009632606,1.93266681,204.33,204.28,7.47]
[1757009632804,1.93266681,204.35,204.29,12.03611101]
[1757009633015,9.63266681,204.35,204.3,4.56611101]
[1757009633314,9.63266681,204.35,204.27,1.93266681]
[1757009633315,9.63266681,204.35,204.28,7.47]
[1757009633516,9.63266681,204.35,204.29,4.56636441]
[1757009633714,7.7,204.34,204.31,7.47]
[1757009634415,9.63266681,204.34,204.31,7.47]
[1757009634817,7.7,204.33,204.31,7.47]
[1757009635112,7.7,204.33,204.27,1.93266681]
[1757009635113,1.93266681,204.32,204.26,7.47]
[1757009635310,1.93266681,204.32,204.27,4.56652895]
[1757009635507,9.63266681,204.32,204.29,7.47]
[1757009636614,1.93266681,204.33,204.27,1.93266681]
[1757009636818,1.93266681,204.36,204.3,7.47]
[1757009637018,1.93266681,204.36,204.32,7.47]
[1757009637220,1.93266681,204.36,204.3,7.47]
[1757009637517,1.93266681,204.36,204.31,4.56694324]
[1757009637819,1.93266681,204.36,204.33,7.47]
[1757009638220,9.63266681,204.36,204.33,7.47]
[1757009638916,9.63266681,204.36,204.29,1.93266681]
[1757009639117,9.63266681,204.36,204.3,4.56265836]
[1757009639318,9.63266681,204.36,204.32,7.47]
[1757009639520,1.93266681,204.36,204.3,7.47]
[1757009639821,9.63266681,204.36,204.32,7.47]
[1757009640015,9.63266681,204.36,204.3,7.47]
[1757009640215,9.63266681,204.36,204.31,4.56286646]
[1757009640417,7.7,204.35,204.32,7.47]
[1757009640617,9.63266681,204.34,204.28,7.47]
[1757009640818,9.63266681,204.34,204.29,4.56286981]
[1757009641017,9.63266681,204.32,204.3,4.56286981]
[1757009641216,1.93266681,204.32,204.31,4.56286981]
[1757009641416,9.63266681,204.32,204.31,4.56286981]
[1757009641817,1.93266681,204.32,204.31,4.56286981]
[1757009643324,9.63266681,204.32,204.24,4.11293075]
[1757009643521,1.93266681,204.28,204.25,12.03469595]
[1757009643816,9.63266681,204.26,204.2,11.58293075]
[1757009644019,1.93266681,204.24,204.21,12.03478178]
[1757009644221,1.93266681,204.29,204.23,7.47]
[1757009644521,7.7,204.28,204.24,12.03478178]
[1757009644717,7.7,204.28,204.25,4.56478178]
[1757009644918,7.7,204.28,204.26,4.56478178]
[1757009645120,1.93266681,204.27,204.21,7.47]
[1757009645318,1.93266681,204.27,204.22,4.56636409]
[1757009645526,1.93266681,204.28,204.23,4.56636409]
[1757009645724,9.63266681,204.3,204.25,7.47]
[1757009645921,1.93266681,204.3,204.28,7.47]
[1757009646529,1.93266681,204.32,204.28,7.47]
[1757009646726,9.63266681,204.32,204.29,4.56661226]
[1757009646928,9.63266681,204.32,204.28,7.47]
[1757009647119,9.63266681,204.32,204.29,4.56661226]
[1757009647423,9.63266681,204.32,204.28,7.47]
[1757009647628,9.63266681,204.32,204.29,4.56695807]
[1757009647828,9.63266681,204.32,204.28,7.47]
[1757009648028,9.63266681,204.32,204.29,4.56695807]
[1757009648331,9.63266681,204.32,204.28,7.47]
[1757009648628,9.63266681,204.32,204.29,4.5670716]
[1757009648828,9.63266681,204.32,204.28,7.47]
[1757009649128,9.63266681,204.32,204.29,4.56707148]
[1757009649327,9.63266681,204.32,204.28,7.47]
[1757009649530,1.93266681,204.32,204.29,12.03718462]
[1757009649730,1.93266681,204.32,204.29,7.47]
[1757009649929,1.93266681,204.34,204.27,1.93266681]
[1757009650128,1.93266681,204.34,204.28,12.03707118]
[1757009650329,9.63266681,204.34,204.3,7.47]
[1757009650728,7.7,204.33,204.3,7.47]
[1757009652332,7.7,204.33,204.31,4.56866816]
[1757009652527,9.63266681,204.32,204.28,7.47]
[1757009652729,9.63266681,204.32,204.29,4.5688652]
[1757009653029,9.63266681,204.32,204.3,4.5688652]
[1757009653229,9.63266681,204.32,204.28,7.47]
[1757009653430,9.63266681,204.32,204.29,4.56980194]
[1757009653630,9.63266681,204.32,204.3,4.56980194]
[1757009653825,9.63266681,204.32,204.28,7.47]
[1757009654030,9.63266681,204.32,204.29,4.56980266]
[1757009654228,1.93266681,204.32,204.3,4.56980266]
[1757009654531,1.93266681,204.32,204.31,4.57086089]
[1757009655032,1.93266681,204.32,204.28,7.47]
[1757009655334,1.93266681,204.32,204.3,7.47]
[1757009655532,1.93266681,204.32,204.31,4.57086136]
[1757009656933,9.63266681,204.32,204.31,4.57086136]
[1757009657535,9.63266681,204.32,204.26,7.47]
[1757009657736,9.63266681,204.32,204.28,7.82]
[1757009657937,9.63266681,204.32,204.29,4.5728958]
[1757009658236,9.63266681,204.32,204.3,4.5728958]
[1757009658433,9.63266681,204.32,204.28,7.82]
[1757009658637,8.05,204.31,204.29,4.57295631]
[1757009658835,8.05,204.31,204.3,4.57295631]
[1757009660435,9.98266681,204.32,204.3,4.57295631]
[1757009660639,9.98266681,204.32,204.28,7.82]
[1757009660832,9.98266681,204.32,204.29,4.57309359]
[1757009661029,8.05,204.31,204.3,4.57309359]
[1757009664540,1.93266681,204.32,204.3,4.57309359]
[1757009664740,1.93266681,204.32,204.26,7.82]
[1757009664941,9.98266681,204.32,204.28,7.82]
[1757009665142,9.98266681,204.32,204.29,4.57328501]
[1757009665339,9.98266681,204.32,204.3,4.57328501]
[1757009665534,9.98266681,204.32,204.28,7.82]
[1757009665739,9.98266681,204.32,204.29,4.57328731]
[1757009665934,9.98266681,204.32,204.3,4.57328731]
[1757009666144,9.98266681,204.32,204.26,7.82]
[1757009666343,1.93266681,204.32,204.27,4.57316847]
[1757009666544,8.05,204.31,204.28,12.39316847]
[1757009666848,8.05,204.31,204.29,4.57316847]
[1757009667048,8.05,204.31,204.3,4.57316847]
[1757009668849,8.05,204.31,204.24,7.82]
[1757009669149,8.05,204.31,204.23,4.11293075]
[1757009669150,1.93266681,204.28,204.25,12.38355545]
[1757009669346,1.93266681,204.28,204.26,4.56355545]
[1757009669546,9.98266681,204.28,204.27,4.56355545]
[1757009671250,1.93266681,204.28,204.27,4.56355545]
[1757009671449,9.98266681,204.28,204.27,4.56355545]
[1757009673942,9.98266681,204.28,204.21,4.11293075]
[1757009674149,1.93266681,204.26,204.23,7.82]
[1757009674343,1.93266681,204.26,204.24,4.56215377]
[1757009674551,1.93266681,204.26,204.25,4.56215377]
[1757009675152,1.93266681,204.26,204.25,12.38215377]
[1757009676354,1.93266681,204.26,204.25,4.56215377]
[1757009677754,8.05,204.25,204.22,7.82]
[1757009677951,1.93266681,204.23,204.22,7.82]
[1757009678149,1.93266681,204.23,204.22,12.38006857]
[1757009680656,1.93266681,204.23,204.22,12.3781418]
[1757009681754,26.0,204.32,204.22,12.3781418]
[1757009681755,8.05,204.28,204.22,12.3781418]
[1757009681957,1.93266681,204.24,204.23,12.3781418]
[1757009684656,1.93266681,204.25,204.23,12.3781418]
[1757009684854,1.93266681,204.25,204.23,7.82]
[1757009685158,1.93266681,204.25,204.24,4.55764689]
[1757009687356,8.05,204.29,204.24,4.55764689]
[1757009687558,1.93266681,204.25,204.2,7.82]
[1757009687758,1.93266681,204.25,204.21,4.55751778]
[1757009687959,1.93266681,204.25,204.23,7.62]
[1757009688159,1.93266681,204.25,204.24,4.55751778]
[1757009688457,9.71266681,204.25,204.24,4.55751778]
[1757009690362,9.71266681,204.25,204.23,7.62]
[1757009691464,1.93266681,204.25,204.23,7.62]
[1757009693565,3.02231908,204.28,204.23,7.62]
[1757009694263,7.78,204.27,204.23,7.62]
[1757009695058,3.02231908,204.28,204.23,7.62]
[1757009695265,7.78,204.27,204.23,7.62]
[1757009695656,3.02231908,204.28,204.23,7.62]
[1757009695860,7.78,204.27,204.19,7.62]
[1757009696064,7.78,204.27,204.21,7.62]
[1757009696259,7.78,204.27,204.23,7.62]
[1757009696464,7.78,204.27,204.19,7.62]
[1757009696662,7.78,204.27,204.21,7.62]
[1757009696857,7.78,204.27,204.23,7.62]
[1757009697061,7.78,204.27,204.18,8.52505589]
[1757009697264,7.78,204.27,204.2,7.62]
[1757009697462,7.78,204.27,204.21,4.55617542]
[1757009697668,10.80231908,204.28,204.22,12.17617542]
[1757009697865,7.78,204.27,204.23,12.17617542]
[1757009698067,7.78,204.27,204.23,7.62]
[1757009698367,10.80231908,204.28,204.19,7.62]
[1757009698567,10.80231908,204.28,204.21,7.62]
[1757009698766,10.80231908,204.28,204.22,4.54563348]
[1757009698968,3.02231908,204.28,204.23,12.16563348]
[1757009699170,7.78,204.27,204.23,7.62]
[1757009699364,3.02231908,204.28,204.23,7.62]
[1757009699663,7.78,204.27,204.23,7.62]
[1757009699870,3.02231908,204.28,204.23,7.62]
[1757009700266,7.78,204.27,204.23,7.62]
[1757009700472,7.78,204.27,204.19,7.62]
[1757009700670,7.78,204.27,204.2,4.54618448]
[1757009700863,10.80231908,204.28,204.22,7.62]
[1757009701172,3.02231908,204.25,204.23,4.54618448]
[1757009701370,3.02231908,204.25,204.19,7.62]
[1757009701572,3.02231908,204.22,204.19,7.62]
[1757009701772,7.78,204.21,204.15,7.62]
[1757009701973,3.02231908,204.22,204.18,0.03123403]
[1757009702173,7.78,204.21,204.19,4.54709525]
[1757009702373,3.02231908,204.22,204.18,0.03123403]
[1757009702773,7.78,204.21,204.18,0.03123403]
[1757009703173,3.02231908,204.22,204.18,0.03123403]
[1757009703373,7.78,204.21,204.18,0.03123403]
[1757009703568,7.81298066,204.23,204.18,0.03123403]
[1757009703776,0.03298066,204.23,204.19,7.62]
[1757009705478,0.03298066,204.23,204.18,7.172009]
[1757009706076,0.03298066,204.23,204.19,7.62]
[1757009706677,0.03298066,204.23,204.18,7.172009]
[1757009707080,0.03298066,204.23,204.19,7.62]
[1757009707274,0.03298066,204.23,204.18,7.172009]
[1757009707474,0.03298066,204.23,204.19,7.62]
[1757009707878,0.03298066,204.23,204.18,7.172009]
[1757009708272,0.03298066,204.23,204.19,7.62]
[1757009709175,7.78,204.33,204.22,11.73845589]
[1757009709375,7.78,204.33,204.24,7.62]
[1757009709582,3.87460224,204.35,204.25,11.73845589]
[1757009709775,7.78,204.37,204.27,3.02231908]
[1757009710079,7.78,204.37,204.28,7.62]
[1757009710375,7.78,204.37,204.3,0.03588941]
[1757009710581,7.78,204.37,204.3,7.65588941]
[1757009711476,7.78,204.34,204.3,0.03588941]
[1757009711678,3.02231908,204.35,204.3,0.03588941]
[1757009711980,7.78,204.34,204.3,0.03588941]
[1757009712481,3.02231908,204.35,204.3,0.03588941]
[1757009712681,7.78,204.34,204.3,0.03588941]
[1757009712984,3.02231908,204.35,204.3,0.03588941]
[1757009713186,7.78,204.34,204.3,0.03588941]
[1757009713681,3.02231908,204.35,204.3,0.03588941]
[1757009714681,127.98,204.34,204.3,0.03588941]
[1757009714881,7.78,204.31,204.3,0.03588941]
[1757009715977,3.02231908,204.32,204.3,0.03588941]
[1757009716180,127.98,204.36,204.3,0.03588941]
[1757009716383,7.78,204.36,204.3,7.65588941]
[1757009716580,316.19207448,204.39,204.3,7.65588941]
[1757009716782,315.34,204.39,204.32,7.62]
[1757009717186,7.78,204.44,204.35,7.62]
[1757009717481,30.4,204.46,204.35,7.62]
[1757009717684,0.85170954,204.47,204.38,7.4]
[1757009717884,7.78,204.48,204.39,4.568422]
[1757009718186,7.78,204.48,204.35,7.4]
[1757009718187,7.71,204.43,204.35,7.4]
[1757009718486,42.4,204.45,204.42,7.4]
[1757009718687,10.73231908,204.47,204.41,0.0354012]
[1757009718877,130.91231908,204.47,204.41,7.4]
[1757009719078,130.91231908,204.47,204.41,7.4352721]
[1757009719486,0.85157407,204.5,204.41,7.4352721]
[1757009719487,0.85157407,204.5,204.44,3.02231908]
[1757009719680,10.73231908,204.58,204.48,7.4]
[1757009719884,0.8512616,204.57,204.49,4.55771029]
[1757009720085,0.8512616,204.57,204.5,4.55771029]
[1757009720285,0.8512616,204.57,204.51,0.03635784]
[1757009722183,10.73231908,204.56,204.51,7.43635784]
[1757009722384,7.71,204.55,204.51,7.43635784]
[1757009725489,3.02231908,204.56,204.51,0.03635784]
[1757009725686,7.71,204.52,204.51,0.03635784]
[1757009726687,7.71,204.52,204.44,7.4]
[1757009726889,7.71,204.52,204.39,7.4]
[1757009726890,3.02231908,204.49,204.39,7.4]
[1757009727291,7.71,204.52,204.39,7.4]
[1757009727494,3.02231908,204.5,204.39,7.4]
[1757009727988,0.03263097,204.47,204.39,7.4]
[1757009734792,3.05495005,204.47,204.39,7.4]
[1757009741098,10.76495005,204.47,204.39,7.4]
[1757009741297,3.02231908,204.45,204.33,7.4]
[1757009741502,3.05495005,204.47,204.36,7.4]
[1757009741702,0.8512616,204.57,204.32,3.02231908]
[1757009741703,7.71,204.54,204.44,3.02231908]
[1757009741908,7.71,204.54,204.45,7.4]
[1757009742105,0.03311219,204.51,204.45,7.4]
[1757009748103,7.69,204.5,204.4,7.54]
[1757009749305,7.69,204.5,204.41,4.5190944]
[1757009749513,7.69,204.5,204.42,7.54]
[1757009750007,0.03232427,204.48,204.42,7.54]
[1757009752309,0.03232427,204.48,204.43,4.5273368]
[1757009752514,0.03232427,204.48,204.4,7.54]
[1757009752720,0.03232427,204.48,204.41,4.52735122]
[1757009753019,0.03232427,204.48,204.42,4.52735122]
[1757009753217,0.03232427,204.48,204.43,4.53090504]
[1757009753416,9.65225689,204.48,204.41,1.92993262]
[1757009753617,9.65225689,204.48,204.42,12.07090504]
[1757009753922,9.65225689,204.48,204.44,7.54]
[1757009755517,9.65225689,204.48,204.42,7.54]
[1757009755714,9.65225689,204.48,204.43,4.53551878]
[1757009755917,9.65225689,204.48,204.42,7.54]
[1757009756117,9.65225689,204.48,204.44,7.54]
[1757009756310,7.69,204.47,204.44,7.54]
[1757009758224,7.69,204.47,204.45,4.54624518]
[1757009758417,0.03232427,204.48,204.43,1.92993262]
[1757009758619,0.03232427,204.48,204.47,9.46993262]
[1757009758820,0.03232427,204.48,204.47,14.0161771]
[1757009759014,1.92993262,204.57,204.48,7.54]
[1757009759216,7.69,204.58,204.51,9.46993262]
[1757009760323,0.85117832,204.6,204.54,7.54]
[1757009760520,1.92993262,204.6,204.54,1.92993262]
[1757009760818,7.72472335,204.59,204.55,12.09295535]
[1757009761026,7.72472335,204.59,204.56,7.54]
[1757009763421,7.72472335,204.59,204.54,9.46993262]
[1757009763729,7.69,204.55,204.52,0.03274276]
[1757009763930,1.92993262,204.53,204.52,0.03274276]
[1757009764322,1.92993262,204.53,204.52,7.57274276]
[1757009764727,9.61993262,204.53,204.52,0.03274276]
[1757009766223,9.61993262,204.53,204.44,7.54]
[1757009766424,1.92993262,204.49,204.45,4.56192404]
[1757009766625,1.92993262,204.49,204.47,7.54]
[1757009766930,1.92993262,204.49,204.48,4.56192404]
[1757009767530,1.92993262,204.49,204.43,7.54]
[1757009767731,1.92993262,204.47,204.44,4.56223645]
[1757009767932,1.92993262,204.47,204.46,7.54]
[1757009768127,1.92993262,204.47,204.46,12.10223645]
[1757009768630,1.96459191,204.49,204.47,7.54]
[1757009769024,1.92993262,204.49,204.47,7.54]
[1757009769227,1.92993262,204.49,204.41,7.54]
[1757009769427,1.92993262,204.46,204.43,7.54]
[1757009769625,0.03527242,204.5,204.44,4.56301596]
[1757009769831,0.03527242,204.5,204.48,7.54]
[1757009770029,1.92993262,204.54,204.49,4.56301596]
[1757009770231,1.92993262,204.52,204.5,4.56301596]
[1757009770531,1.92993262,204.52,204.46,7.54]
[1757009770732,1.92993262,204.52,204.47,4.56216043]
[1757009771033,1.92993262,204.52,204.49,7.54]
[1757009771229,1.92993262,204.52,204.5,4.56216043]
[1757009771426,1.92993262,204.52,204.46,7.54]
[1757009771732,1.92993262,204.48,204.47,4.56159748]
[1757009772135,1.92993262,204.48,204.47,12.10159748]
[1757009772335,1.96734807,204.5,204.47,12.10159748]
[1757009772536,1.96734807,204.5,204.47,7.54]
[1757009773036,0.03741545,204.5,204.49,7.54]
[1757009773236,0.03741545,204.5,204.49,12.10208724]
[1757009777837,1.92993262,204.58,204.5,7.34]
[1757009778030,1.92993262,204.6,204.54,7.34]
[1757009778230,1.92993262,204.6,204.55,4.55940062]
[1757009778436,9.88993262,204.6,204.56,7.34]
[1757009779042,9.88993262,204.6,204.56,7.37340491]
[1757009779237,1.92993262,204.62,204.56,7.37340491]
[1757009779537,1.92993262,204.62,204.56,7.34]
[1757009779737,9.88993262,204.64,204.57,6.52538191]
[1757009780031,1.92993262,204.58,204.54,7.34]
[1757009780235,1.92993262,204.58,204.55,4.55839907]
[1757009780438,1.92993262,204.58,204.54,7.3716538]
[1757009781132,1.92993262,204.56,204.54,0.0316538]
[1757009783235,1.92993262,204.58,204.54,0.0316538]
[1757009783537,7.96,204.58,204.54,7.3716538]
[1757009783740,1.92993262,204.59,204.55,7.34]
[1757009784432,1.92993262,204.59,204.55,7.37513069]
[1757009784832,9.88993262,204.59,204.55,7.37513069]
[1757009785340,9.88993262,204.57,204.55,0.03513069]
[1757009785541,1.92993262,204.59,204.55,7.37513069]
[1757009785741,7.96,204.58,204.55,0.03513069]
[1757009786438,1.92993262,204.59,204.55,7.37513069]
[1757009786632,1.92993262,204.6,204.55,7.37513069]
[1757009786834,1.92993262,204.6,204.56,7.34]
[1757009787543,9.88993262,204.6,204.56,7.34]
[1757009788445,7.96,204.59,204.55,0.03513069]
[1757009789846,7.96,204.57,204.55,0.03513069]
[1757009791348,7.96,204.63,204.55,0.03513069]
[1757009791950,1.92993262,204.59,204.55,0.03513069]
[1757009792248,7.96,204.56,204.55,0.03513069]
[1757009793040,1.92993262,204.57,204.55,0.03513069]
[1757009793352,9.88993262,204.59,204.55,7.37513069]
[1757009793946,1.92993262,204.59,204.55,7.37513069]
[1757009794153,9.88993262,204.59,204.55,7.37513069]
[1757009794552,1.92993262,204.59,204.55,0.03513069]
[1757009794751,1.92993262,204.59,204.55,7.37513069]
[1757009795750,7.96,204.62,204.55,7.37513069]
[1757009795942,9.88993262,204.6,204.55,7.37513069]
[1757009796149,7.96,204.59,204.55,7.37513069]
[1757009797147,1.92993262,204.6,204.56,7.34]
[1757009797652,9.88993262,204.6,204.56,7.34]
[1757009798353,1.92993262,204.6,204.55,0.03513069]
[1757009798553,9.88993262,204.6,204.55,7.37513069]
[1757009798753,7.96,204.59,204.55,7.37513069]
[1757009800953,7.96,204.57,204.55,0.03513069]
[1757009801456,7.96,204.58,204.55,0.03513069]
[1757009801650,7.96,204.57,204.55,0.03513069]
[1757009802251,9.88993262,204.56,204.55,0.03513069]
[1757009805453,7.96,204.56,204.55,0.03513069]
[1757009810954,8.44,204.56,204.44,4.10396917]
[1757009811154,7.3,204.48,204.45,4.60208283]
[1757009811358,7.3,204.48,204.44,7.84]
[1757009811858,7.3,204.48,204.43,7.84]
[1757009812061,1.92993262,204.49,204.42,6.03390179]
[1757009812254,0.03499817,204.48,204.42,6.03390179]
[1757009812658,0.03499817,204.48,204.43,7.84]
[1757009813058,0.03499817,204.48,204.42,6.03390179]
[1757009813661,0.03499817,204.48,204.42,4.10396917]
[1757009814256,0.03499817,204.48,204.43,7.84]
[1757009814458,0.03499817,204.48,204.42,4.10396917]
[1757009815555,0.03499817,204.48,204.42,11.94396917]
[1757009816762,0.03499817,204.48,204.44,11.94396917]
[1757009816961,0.03499817,204.48,204.44,4.10396917]
[1757009817562,0.03499817,204.48,204.45,7.84]
[1757009817860,0.03499817,204.48,204.44,4.10396917]
[1757009818261,0.03499817,204.48,204.47,7.84]
[1757009819866,7.3,204.55,204.47,8.32]
[1757009820164,14.68,204.65,204.47,8.32]
[1757009820165,7.3,204.61,204.51,10.85523794]
[1757009820361,7.3,204.6,204.51,10.85523794]
[1757009821067,7.3,204.6,204.54,3.01523794]
[1757009822269,7.3,204.65,204.55,7.84]
[1757009822769,7.3,204.65,204.58,0.03390988]
[1757009825273,7.3,204.59,204.58,0.03390988]
[1757009826674,0.48,204.59,204.47,7.84]
[1757009826871,7.3,204.54,204.47,7.84]
[1757009827577,3.01523794,204.52,204.43,11.94396917]
[1757009827771,7.3,204.51,204.43,7.84]
[1757009828068,0.03190188,204.53,204.43,7.84]
[1757009828069,10.31523794,204.49,204.43,7.84]
[1757009828669,0.0356597,204.48,204.41,7.84]
[1757009829775,0.0356597,204.48,204.42,0.03483051]
[1757009830474,0.0356597,204.48,204.43,7.84]
[1757009830666,0.0356597,204.48,204.44,7.84]
[1757009831170,0.0356597,204.48,204.46,7.84]
[1757009831376,0.0356597,204.48,204.43,4.10396917]
[1757009831377,0.0356597,204.48,204.44,4.10396917]
[1757009831571,0.0356597,204.48,204.45,7.84]
[1757009831776,0.0356597,204.48,204.44,4.10396917]
[1757009832370,0.0356597,204.48,204.45,7.84]
[1757009832971,0.0356597,204.48,204.44,7.11920711]
[1757009833169,0.0356597,204.48,204.45,7.84]
[1757009833368,0.0356597,204.48,204.45,10.85523794]
[1757009833570,0.0356597,204.48,204.45,3.01523794]
[1757009834580,0.0356597,204.48,204.46,7.84]
[1757009835384,0.0356597,204.48,204.45,3.01523794]
[1757009835582,0.0356597,204.48,204.45,7.11920711]
[1757009835787,0.0356597,204.48,204.47,7.84]
[1757009839685,20.13308795,204.64,204.47,8.32]
[1757009839889,7.45,204.63,204.52,7.4]
[1757009840090,7.45,204.63,204.54,3.01523794]
[1757009840290,7.45,204.63,204.55,7.4]
[1757009840986,7.45,204.63,204.57,0.0354589]
[1757009845899,10.46523794,204.63,204.57,0.0354589]
[1757009846993,7.45,204.63,204.57,0.0354589]
[1757009863410,3.01523794,204.62,204.57,0.0354589]
[1757009863608,7.45,204.61,204.57,0.0354589]
[1757009867411,7.45,204.58,204.57,0.0354589]
[1757009868114,7.93,204.58,204.57,0.0354589]
[1757009868609,0.48,204.58,204.45,8.01]
[1757009868808,7.77,204.53,204.46,3.82137604]
[1757009869009,7.77,204.53,204.47,3.82137604]
[1757009869210,7.77,204.53,204.48,3.82137604]
[1757009869416,7.77,204.53,204.49,3.82137604]
[1757009869612,7.77,204.53,204.45,8.01]
[1757009869814,7.77,204.53,204.46,3.82122583]
[1757009870010,7.77,204.5,204.47,3.82122583]
[1757009870311,7.80435325,204.51,204.45,8.01]
[1757009870507,0.03435325,204.51,204.46,3.82099501]
[1757009870713,7.77,204.5,204.47,11.83099501]
[1757009871018,0.03435325,204.51,204.48,11.83099501]
[1757009871208,0.03435325,204.51,204.44,8.01]
[1757009871507,0.03435325,204.51,204.46,8.01]
[1757009871712,7.80435325,204.51,204.47,11.83059073]
[1757009871904,0.03435325,204.51,204.48,11.83059073]
[1757009872109,0.03435325,204.51,204.45,8.01]
[1757009872302,0.03435325,204.51,204.46,3.82039046]
[1757009872515,0.03435325,204.51,204.48,8.01]
[1757009872714,0.03435325,204.51,204.5,8.01]